bitfinex/quotes_ETHUSD_20260225
["timestamp","ask_amount","ask_price","bid_price","bid_amount"]
[1772006888795,0.48669261,1894.2,1893.9,0.0011]
[1772006890266,1.80640065,1894.4,1893.9,0.45790518]
[1772006890793,0.48669261,1894.3,1893.9,0.45790518]
[1772006890984,0.48669261,1894.3,1893.9,0.0011]
[1772006892184,0.48669261,1894.1,1893.9,0.0011]
[1772006893098,0.48669261,1894.1,1894.0,0.001]
[1772006894172,1.80658068,1894.1,1894.0,0.001]
[1772006895582,0.48669261,1894.0,1893.8,0.0011]
[1772006896505,0.48669261,1893.8,1893.6,0.0011]
[1772006896994,0.48669261,1893.8,1893.2,0.45680518]
[1772006897703,0.48669261,1893.8,1893.0,1.77842238]
[1772006897890,0.48669261,1893.8,1893.0,0.45780518]
[1772006898093,0.48669261,1893.8,1893.0,1.77844689]
[1772006899012,0.48669261,1893.6,1893.0,1.77844689]
[1772006899907,0.48669261,1893.6,1893.0,0.45780518]
[1772006900274,0.48669261,1893.6,1893.0,1.77844082]
[1772006900688,0.48669261,1893.6,1893.0,0.45780518]
[1772006902005,1.80699892,1893.5,1893.0,0.45780518]
[1772006902184,1.80699892,1893.5,1893.0,1.77845987]
[1772006902383,1.80699892,1893.5,1893.1,0.45680518]
[1772006902596,0.48669261,1893.4,1893.1,0.45680518]
[1772006904705,12.66204081,1893.9,1893.2,0.45680518]
[1772006904706,1.80683832,1893.8,1893.2,0.45680518]
[1772006905010,7.97165296,1893.9,1893.2,0.45680518]
[1772006905011,1.32003279,1893.9,1893.2,0.45680518]
[1772006905211,0.48669261,1894.1,1893.2,4.69045216]
[1772006905374,0.48669261,1894.1,1893.4,0.45680518]
[1772006906682,0.47324351,1894.0,1893.5,1.79367634]
[1772006906888,0.47324351,1894.0,1893.6,0.47337003]
[1772006907377,1.31991826,1894.1,1893.6,0.47337003]
[1772006907583,0.47324351,1894.2,1893.6,0.47337003]
[1772006908907,1.79307178,1894.2,1893.7,1.32016686]
[1772006909108,1.79307178,1894.2,1893.7,1.81935262]
[1772006909688,5.27889516,1894.4,1893.8,0.49918576]
[1772006909689,0.45120049,1894.3,1893.8,0.49918576]
[1772006910216,1.585,1894.5,1893.8,0.49918576]
[1772006910907,1.585,1894.5,1894.0,0.49918576]
[1772006911211,2.90461274,1894.5,1894.0,0.49918576]
[1772006911411,1.585,1894.5,1894.0,0.49918576]
[1772006911711,2.9046096,1894.5,1894.0,0.49918576]
[1772006912607,2.90461802,1894.5,1894.0,0.49918576]
[1772006912819,3.35581851,1894.5,1894.0,0.49918576]
[1772006913113,3.35581851,1894.5,1894.0,1.31993556]
[1772006913114,2.03620049,1894.5,1894.0,1.31993556]
[1772006913312,2.03620049,1894.5,1894.1,0.49918576]
[1772006913516,3.35581555,1894.5,1894.1,0.49918576]
[1772006915416,3.35581555,1894.5,1893.8,5.28026438]
[1772006915417,0.45120049,1894.4,1893.8,0.49918576]
[1772006917321,2.90461506,1894.5,1893.8,0.49918576]
[1772006917524,3.35581555,1894.5,1894.0,0.49918576]
[1772006918015,0.45120049,1894.4,1894.0,0.49918576]
[1772006918918,0.45220049,1894.4,1894.0,0.49918576]
[1772006919122,0.45220049,1894.4,1893.8,1.32004587]
[1772006919326,0.45220049,1894.4,1893.9,0.49918576]
[1772006919500,0.001,1894.4,1894.0,1.81914352]
[1772006919698,0.001,1894.4,1894.0,0.49918576]
[1772006920831,0.45220049,1894.4,1894.0,0.49918576]
[1772006921732,1.77192477,1894.4,1894.0,0.49918576]
[1772006923732,1.585,1894.5,1893.9,0.49918576]
[1772006923938,1.585,1894.5,1894.0,0.49918576]
[1772006924232,0.002,1894.7,1894.4,0.46540714]
[1772006925832,0.002,1894.7,1894.5,1.78501653]
[1772006926125,0.002,1894.7,1894.6,0.46540714]
[1772006926334,0.002,1895.0,1894.6,0.46540714]
[1772006927199,0.002,1895.0,1894.6,3.81068599]
[1772006927403,0.002,1895.0,1894.7,0.46540714]
[1772006927818,0.002,1895.0,1894.8,1.7848076]
[1772006928429,0.002,1895.0,1894.8,0.46540714]
[1772006930606,0.002,1895.0,1894.8,1.78479517]
[1772006930911,0.002,1895.0,1894.8,0.46540714]
[1772006931512,0.002,1895.0,1894.6,1.784945]
[1772006931721,0.002,1895.0,1894.6,0.46540714]
[1772006931722,0.45320049,1895.0,1894.6,0.46540714]
[1772006932113,0.001,1894.9,1894.6,0.46540714]
[1772006932316,0.001,1894.9,1894.5,1.31955712]
[1772006932511,0.45220049,1894.9,1894.2,0.46540714]
[1772006932913,0.45220049,1894.9,1894.2,1.78522166]
[1772006933317,0.45220049,1894.9,1894.0,0.46540714]
[1772006934733,0.45120049,1894.7,1893.9,1.32002539]
[1772006935434,0.45120049,1894.7,1894.0,0.46540714]
[1772006936230,0.45120049,1894.7,1893.8,1.7855023]
[1772006936416,0.45607834,1894.6,1893.7,1.78663949]
[1772006936819,0.45607834,1894.4,1893.7,1.78663949]
[1772006937639,0.45607834,1894.4,1893.8,0.46540714]
[1772006939139,0.45607834,1894.3,1893.8,1.78547549]
[1772006939936,0.45607834,1894.3,1893.7,1.3212109]
[1772006940448,0.45607834,1894.3,1893.7,1.78661804]
[1772006940940,0.45607834,1894.3,1893.8,0.46540714]
[1772006941312,0.45607834,1894.3,1893.9,1.78543459]
[1772006941669,0.45607834,1894.2,1893.5,0.0011]
[1772006941951,0.45607834,1894.0,1893.5,0.0011]
[1772006942316,0.45607834,1893.8,1893.1,0.0011]
[1772006943547,0.45607834,1893.6,1893.1,0.0011]
[1772006944762,0.45607834,1893.6,1893.5,0.001]
[1772006945129,0.45607834,1893.6,1893.1,0.0011]
[1772006945329,0.45607834,1893.6,1893.3,0.001]
[1772006945861,0.45607834,1893.4,1893.3,0.001]
[1772006949666,1.77645438,1893.4,1893.3,0.001]
[1772006949868,0.45607834,1893.3,1893.1,0.0011]
[1772006950562,5.2811003,1893.6,1893.1,0.0011]
[1772006950563,0.45607834,1893.6,1893.1,0.0011]
[1772006952445,1.32030631,1893.5,1893.1,0.0011]
[1772006952646,0.45607834,1893.4,1893.1,0.0011]
[1772006955461,1.77646311,1893.4,1893.1,0.0011]
[1772006957088,1.77646311,1893.4,1893.2,0.0011]
[1772006957789,0.001,1893.5,1893.2,0.0011]
[1772006958091,0.001,1893.5,1893.2,0.46760714]
[1772006958598,1.32131593,1893.5,1893.2,0.46760714]
[1772006958766,1.77739427,1893.5,1893.2,0.0011]
[1772006958966,0.45707834,1893.5,1893.2,0.0011]
[1772006959179,0.001,1893.5,1893.2,0.46760714]
[1772006961786,0.001,1893.5,1893.3,0.46650714]
[1772006963069,0.001,1893.5,1893.3,1.78694309]
[1772006963274,0.001,1893.5,1893.3,0.46650714]
[1772006964091,0.001,1893.5,1893.4,0.46650714]
[1772006964597,6.35,1893.7,1893.4,0.46550714]
[1772006965368,7.67016975,1893.7,1893.4,0.46550714]
[1772006966105,6.35,1893.7,1893.4,0.46550714]
[1772006967578,1.77064214,1893.8,1893.4,0.46550714]
[1772006969307,0.48078194,1893.7,1893.3,0.0011]
[1772006969512,0.48178194,1893.7,1893.3,0.0011]
[1772006970887,0.48078194,1893.6,1893.3,0.0011]
[1772006971084,1.80104259,1893.6,1893.3,0.0011]
[1772006971519,0.48078194,1893.5,1893.3,0.0011]
[1772006971809,0.48078194,1893.5,1893.2,0.0011]
[1772006973314,1.32032583,1893.5,1893.2,0.0011]
[1772006973613,0.48078194,1893.4,1893.2,0.0011]
[1772006980910,0.48078194,1893.4,1893.3,0.0011]
[1772006981507,5.28179528,1893.7,1893.3,0.0011]
[1772006981508,0.48078194,1893.6,1893.3,0.0011]
[1772006981710,0.001,1893.7,1893.3,0.46770714]
[1772006983315,0.001,1893.7,1893.4,0.46660714]
[1772006987419,0.5,1894.0,1893.4,1.3203738]
[1772006987600,0.5,1894.3,1893.5,3.35161822]
[1772006988017,1.31981839,1894.2,1893.6,1.32023658]
[1772006988319,5.27894409,1894.4,1893.6,1.32023658]
[1772006988320,0.5,1894.3,1893.6,1.32023658]
[1772006990297,0.5,1894.4,1893.6,15.670704]
[1772006991219,0.5,1894.4,1893.7,1.004714]
[1772006992016,0.5,1894.4,1893.9,1.004714]
[1772006992213,0.5,1894.2,1893.7,1.004714]
[1772006992404,0.5,1894.2,1893.7,2.32487311]
[1772006992604,0.5,1894.2,1893.7,1.004714]
[1772006992893,0.5,1894.2,1893.7,2.32487574]
[1772006994296,0.5,1894.1,1893.7,2.32487574]
[1772006996322,0.5,1894.1,1893.7,1.004714]
[1772006996620,0.5,1894.1,1893.2,3.90302]
[1772006996621,0.5,1894.0,1893.3,2.32622007]
[1772006997034,0.5,1894.0,1893.5,1.004714]
[1772006998719,0.5,1893.8,1893.5,1.004714]
[1772006999898,0.5,1893.8,1893.5,2.32501548]
[1772007000318,0.5,1893.8,1893.5,1.004714]
[1772007001196,0.5,1893.8,1893.4,1.32036816]
[1772007003838,0.5,1893.7,1893.3,0.0011]
[1772007005205,0.5,1893.7,1893.2,0.0011]
[1772007005506,0.49945,1893.5,1893.2,0.0011]
[1772007005924,1.81975631,1893.5,1893.4,0.0011]
[1772007006227,0.49945,1893.4,1893.2,0.0011]
[1772007008137,0.49945,1893.2,1892.1,4.74287921]
[1772007008341,0.49945,1893.2,1892.5,0.0011]
[1772007008642,0.49945,1893.0,1892.3,0.0011]
[1772007010112,0.49945,1892.8,1892.3,0.0011]
[1772007012227,1.82031437,1892.7,1892.3,0.0011]
[1772007012531,0.49945,1892.7,1892.3,0.0011]
[1772007013322,0.49945,1892.7,1892.1,3.89217248]
[1772007014108,0.49945,1892.7,1892.2,4.69626756]
[1772007014307,6.35,1893.3,1892.3,1.32114358]
[1772007014522,0.49945,1893.1,1892.3,1.32114358]
[1772007014726,0.49945,1893.1,1892.5,4.69626756]
[1772007015014,0.49945,1893.4,1892.8,4.69626756]
[1772007017333,0.49945,1893.3,1892.8,6.01700433]
[1772007017515,0.49945,1893.3,1892.7,1.32082376]
[1772007017831,0.49945,1893.3,1892.8,0.0011]
[1772007018422,0.49945,1893.3,1892.6,0.0011]
[1772007020035,0.49945,1893.2,1892.6,0.0011]
[1772007021711,0.49945,1893.3,1892.6,0.0011]
[1772007022440,1.81990056,1893.3,1892.6,0.0011]
[1772007023124,0.49945,1893.3,1892.6,0.0011]
[1772007024340,0.49945,1893.2,1892.6,0.0011]
[1772007024528,0.49945,1893.2,1892.4,0.0022]
[1772007024728,0.49945,1893.2,1892.4,0.0011]
[1772007025240,0.49945,1892.9,1892.1,0.0011]
[1772007025419,0.49945,1892.9,1892.1,1.32237926]
[1772007025825,0.49945,1892.9,1892.1,0.0011]
[1772007026344,0.49945,1892.7,1892.1,0.0011]
[1772007027129,0.49945,1892.7,1892.1,0.0022]
[1772007027534,0.49945,1892.7,1892.2,0.0011]
[1772007029713,0.49945,1892.7,1892.3,0.0011]
[1772007031749,0.50045,1893.1,1892.6,1.00750459]
[1772007032222,0.50045,1893.1,1892.8,1.00640459]
[1772007033250,0.50045,1893.1,1892.6,1.32198093]
[1772007034753,0.50045,1893.1,1892.6,0.0011]
[1772007040859,0.001,1893.1,1892.6,0.0011]
[1772007041055,0.001,1893.1,1892.8,0.0011]
[1772007041656,0.50045,1893.1,1892.8,0.0011]
[1772007042733,0.001,1893.0,1892.8,0.0011]
[1772007043357,0.49945,1893.3,1892.6,0.0011]
[1772007043532,0.49945,1893.3,1892.9,0.0011]
[1772007044054,0.49945,1893.1,1892.5,1.32203977]
[1772007044460,0.49945,1893.1,1892.6,0.0011]
[1772007045560,0.49945,1893.1,1892.5,0.0011]
[1772007046565,0.49945,1892.9,1892.5,0.0011]
[1772007049359,1.82018411,1892.9,1892.5,0.0011]
[1772007049559,0.49945,1892.8,1892.4,0.0011]
[1772007050261,0.49945,1892.8,1892.4,4.67661042]
[1772007050560,0.49945,1892.8,1892.4,4.6766093]
[1772007054267,0.49945,1892.8,1892.5,0.0011]
[1772007055459,0.49945,1892.8,1892.6,0.67073289]
[1772007059460,0.49945,1892.7,1892.6,0.67073289]
[1772007059645,0.49945,1892.7,1892.4,0.0011]
[1772007060166,0.49945,1892.7,1892.4,0.67183289]
[1772007060364,0.46127657,1892.6,1892.4,0.67183289]
[1772007060665,0.46127657,1892.6,1892.4,0.0011]
[1772007061170,0.46127657,1892.6,1892.2,0.67183289]
[1772007062079,0.46127657,1892.5,1892.3,0.67073289]
[1772007065378,1.78217648,1892.7,1892.4,0.67073289]
[1772007065675,0.46127657,1892.6,1892.4,0.67073289]
[1772007066849,0.46127657,1892.6,1892.5,0.0011]
[1772007067151,0.46227657,1893.0,1892.6,0.483382]
[1772007067453,0.46127657,1892.9,1892.5,1.15521489]
[1772007067657,0.46127657,1892.9,1892.6,0.67073289]
[1772007068158,0.46127657,1892.9,1892.7,0.67073289]
[1772007068558,0.46127657,1892.9,1892.6,1.15411489]
[1772007069579,0.46127657,1892.9,1892.7,0.67073289]
[1772007069784,0.46127657,1892.9,1892.7,1.15411489]
[1772007071185,0.46127657,1892.9,1892.5,1.15521489]
[1772007071186,1.78201606,1892.9,1892.5,1.15521489]
[1772007071386,1.78201606,1892.9,1892.6,0.67073289]
[1772007073012,0.46127657,1892.8,1892.6,0.67073289]
[1772007073181,0.46127657,1892.8,1892.5,0.0011]
[1772007073792,0.46127657,1892.7,1892.5,0.0011]
[1772007074872,0.46127657,1892.7,1892.5,0.67183289]
[1772007075070,1.78205239,1892.9,1892.5,1.15521489]
[1772007075272,1.78297149,1893.0,1892.8,0.67073289]
[1772007075672,1.78297149,1893.0,1892.7,1.15411489]
[1772007076393,1.78297149,1893.0,1892.9,0.67073289]
[1772007076394,0.001,1893.0,1892.9,0.67073289]
[1772007077692,0.001,1893.0,1892.8,1.15411489]
[1772007078190,0.001,1893.0,1892.8,0.67073289]
[1772007078383,0.46227657,1893.0,1892.8,0.67073289]
[1772007079093,0.46227657,1893.0,1892.7,1.15411489]
[1772007079292,0.001,1892.9,1892.8,0.67073289]
[1772007086111,0.46020607,1892.9,1892.6,0.67073289]
[1772007086674,0.46020607,1892.9,1892.6,1.12094574]
[1772007087002,0.46020607,1892.9,1892.6,2.4418693]
[1772007087378,0.46020607,1892.9,1892.8,0.67073289]
[1772007089279,0.46020607,1892.9,1892.7,0.67073289]
[1772007092110,0.46020607,1892.9,1892.6,0.67073289]
[1772007092305,0.001,1892.8,1892.6,0.67073289]
[1772007092505,0.47910605,1892.8,1892.6,0.67073289]
[1772007093005,0.47910605,1892.8,1892.5,0.0011]
[1772007093006,0.47810605,1892.7,1892.5,0.0011]
[1772007093210,0.47810605,1892.7,1892.5,0.67183289]
[1772007094304,0.001,1893.0,1892.7,0.4973004]
[1772007094503,0.001,1893.0,1892.8,0.67073289]
[1772007094808,0.47910605,1893.0,1892.8,0.67073289]
[1772007095004,0.47910605,1893.0,1892.7,1.16803329]
[1772007095309,6.35,1893.3,1892.7,1.16803329]
[1772007095310,1.32047814,1893.3,1893.0,0.4973004]
[1772007095559,0.47810605,1893.2,1892.9,0.67073289]
[1772007097110,0.47810605,1893.2,1892.9,1.16803329]
[1772007097411,0.47810605,1893.2,1893.0,0.67073289]
[1772007100817,1.7986242,1893.2,1893.0,0.67073289]
[1772007101009,0.47810605,1893.2,1893.0,0.67073289]
[1772007101520,1.79862376,1893.2,1892.9,1.16803329]
[1772007103220,0.47810605,1893.1,1892.6,1.16803329]
[1772007103589,0.47810605,1892.9,1892.7,0.67073289]
[1772007103806,0.47810605,1893.3,1892.8,0.67073289]
[1772007104010,5.76002994,1893.3,1892.9,0.67073289]
[1772007104228,0.47810605,1893.2,1892.9,0.67073289]
[1772007104520,0.001,1893.1,1892.9,0.67073289]
[1772007105205,0.001,1893.1,1892.7,0.67183289]
[1772007105206,0.47910605,1893.1,1892.7,0.67183289]
[1772007105593,0.47810605,1893.0,1892.7,1.16913329]
[1772007105802,0.47810605,1893.0,1892.8,0.67073289]
[1772007106719,0.47810605,1893.0,1892.7,1.16913329]
[1772007107527,0.47810605,1893.0,1892.8,0.67073289]
[1772007109198,0.47810605,1893.0,1892.7,1.81925726]
[1772007109404,0.47810605,1893.0,1892.7,2.82515581]
[1772007109632,0.001,1893.1,1892.8,0.4973004]
[1772007110633,0.001,1893.1,1892.7,1.00699855]
[1772007110634,0.47910605,1893.1,1892.7,1.00699855]
[1772007110835,0.47910605,1893.1,1892.7,1.50429895]
[1772007111035,0.47910605,1893.1,1892.7,2.82514968]
[1772007111835,0.47910605,1893.1,1892.8,0.4973004]
[1772007113837,0.47910605,1893.1,1892.8,1.81808994]
[1772007114019,0.47810605,1893.2,1892.9,1.50319895]
[1772007114218,1.79856105,1893.3,1893.0,0.4973004]
[1772007116337,0.47810605,1893.3,1893.0,0.4973004]
[1772007116536,1.798555,1893.3,1893.0,0.4973004]
[1772007117032,0.001,1893.2,1893.0,0.4973004]
[1772007119741,0.47560309,1893.4,1893.1,1.4782672]
[1772007119940,0.47560309,1893.4,1892.9,1.00699855]
[1772007119941,0.47460309,1893.3,1892.9,1.00699855]
[1772007121442,0.47460309,1893.3,1892.9,2.32771547]
[1772007121623,0.47460309,1893.3,1892.9,1.00699855]
[1772007122015,0.47460309,1893.3,1892.9,2.32771494]
[1772007122238,0.47460309,1893.3,1892.9,1.00699855]
[1772007123247,0.47460309,1893.3,1892.9,0.0011]
[1772007123248,0.47460309,1893.2,1892.9,0.0011]
[1772007123539,0.47460309,1893.0,1892.8,0.47346865]
[1772007124645,0.47460309,1893.0,1892.8,0.0011]
[1772007126020,1.79526071,1893.0,1892.8,0.0011]
[1772007126342,0.47460309,1892.9,1892.8,0.0011]
[1772007129949,0.47460309,1892.8,1892.6,0.0011]
[1772007131546,1.79533021,1892.9,1892.6,0.0011]
[1772007131748,1.32072712,1892.9,1892.6,0.0011]
[1772007132048,0.47460309,1892.8,1892.6,0.0011]
[1772007140273,0.47460309,1892.7,1892.4,0.0011]
[1772007140633,1.79553725,1892.6,1892.4,0.0011]
[1772007141639,1.79553725,1892.6,1892.5,0.0011]
[1772007143069,5.28417836,1892.9,1892.6,0.47236865]
[1772007143070,0.001,1892.9,1892.6,0.47236865]
[1772007143370,0.001,1892.9,1892.7,1.00589855]
[1772007143563,0.001,1892.9,1892.6,0.47236865]
[1772007144172,0.47560309,1892.9,1892.6,0.47236865]
[1772007145075,1.79633916,1892.9,1892.6,0.47236865]
[1772007146292,1.79633376,1892.9,1892.6,0.47236865]
[1772007147094,0.47560309,1892.9,1892.6,0.47236865]
[1772007147794,1.79633453,1892.9,1892.6,0.47236865]
[1772007147968,0.4683093,1892.8,1892.5,0.0011]
[1772007150177,1.78912148,1892.8,1892.5,0.0011]
[1772007151193,0.4683093,1892.8,1892.5,0.0011]
[1772007151397,1.78910981,1892.8,1892.5,0.0011]
[1772007152498,0.4683093,1892.7,1892.5,0.0011]
[1772007153700,1.79021397,1892.7,1892.5,0.0011]
[1772007154374,0.4683093,1892.6,1892.5,0.0011]
[1772007154607,0.4683093,1892.6,1892.3,0.0011]
[1772007155171,0.4683093,1892.6,1892.3,0.46774571]
[1772007156680,0.4683093,1892.6,1892.3,1.47364426]
[1772007157282,1.7902237,1892.7,1892.4,0.46664571]
[1772007161209,0.4683093,1892.6,1892.3,1.47364426]
[1772007161808,0.4693093,1892.7,1892.4,0.46664571]
[1772007165306,1.79018267,1892.7,1892.4,0.46774571]
[1772007165607,0.001,1892.6,1892.4,0.46774571]
[1772007166206,1.32175123,1892.9,1892.4,0.46774571]
[1772007166207,0.001,1892.9,1892.7,0.46664571]
[1772007175506,0.001,1893.0,1892.8,0.47699641]
[1772007177013,0.001,1893.0,1892.8,0.47809641]
[1772007177390,0.001,1893.0,1892.8,1.14884953]
[1772007178099,0.001,1893.0,1892.8,0.47809641]
[1772007179988,0.001,1893.0,1892.8,0.0011]
[1772007179989,0.47364825,1893.0,1892.8,0.0011]
[1772007182122,1.79337306,1892.9,1892.8,0.0011]
[1772007183432,0.47364825,1893.0,1892.8,0.0011]
[1772007183606,0.001,1893.0,1892.8,0.47809641]
[1772007185820,0.001,1893.0,1892.5,5.28511394]
[1772007185821,0.47264825,1892.9,1892.5,0.0011]
[1772007186007,0.47264825,1892.9,1892.5,0.47809641]
[1772007188329,1.79344284,1892.8,1892.5,0.47809641]
[1772007188498,1.79344284,1892.8,1892.5,1.14884953]
[1772007190137,1.79344284,1892.8,1892.7,0.0011]
[1772007191024,0.47264825,1892.8,1892.7,0.0011]
[1772007191638,1.79344284,1892.8,1892.7,0.0011]
[1772007192533,0.47364825,1892.9,1892.7,0.0011]
[1772007192704,0.001,1892.9,1892.7,1.14884953]
[1772007193902,0.001,1892.9,1892.8,0.47699641]
[1772007196028,1.79320707,1893.2,1892.9,1.14774953]
[1772007199931,5.28187683,1893.3,1893.0,0.47699641]
[1772007199932,1.7931316,1893.3,1893.0,0.47699641]
[1772007202545,0.001,1893.2,1893.0,0.47699641]
[1772007202745,0.001,1893.2,1893.0,1.14774953]
[1772007207050,0.48847691,1893.2,1892.8,0.0011]
[1772007207754,0.48847691,1893.2,1892.8,0.67185312]
[1772007209148,1.81315819,1893.1,1892.8,0.67185312]
[1772007211639,1.81315819,1893.1,1892.8,1.16281375]
[1772007213964,1.81315819,1893.1,1892.9,0.0011]
[1772007214959,1.32058528,1893.1,1892.9,0.0011]
[1772007215161,0.49357291,1893.2,1892.9,1.16281375]
[1772007215466,0.001,1893.2,1893.0,0.49096063]
[1772007218864,1.32151552,1893.2,1893.0,0.49096063]
[1772007222879,1.81408843,1893.2,1892.9,1.16281375]
[1772007225692,1.81408843,1893.2,1892.9,0.49206063]
[1772007225870,1.81408843,1893.2,1893.0,0.0011]
[1772007226273,0.001,1893.1,1893.0,0.0011]
[1772007229377,0.001,1893.1,1893.0,0.49206063]
[1772007230985,0.001,1893.1,1893.0,0.0011]
[1772007241999,0.47647533,1893.1,1892.9,0.0011]
[1772007243501,1.79613037,1893.0,1892.9,0.0011]
[1772007245510,1.32065504,1893.0,1892.9,0.0011]
[1772007247204,1.79711519,1893.1,1892.9,0.0011]
[1772007247616,0.001,1893.1,1893.0,0.48686248]
[1772007247782,0.47647533,1893.2,1892.9,1.49379261]
[1772007249876,1.79699633,1893.2,1892.9,1.49379261]
[1772007251203,0.47647533,1893.2,1892.9,1.49379261]
[1772007251509,0.47647533,1893.2,1893.0,0.0011]
[1772007251802,0.001,1893.1,1893.0,0.0011]
[1772007260126,0.47647533,1893.1,1893.0,0.0011]
[1772007262526,0.001,1893.1,1893.0,0.0011]
[1772007266902,1.32137828,1893.4,1893.0,0.48990117]
[1772007267217,1.81205089,1893.4,1893.0,0.48990117]
[1772007268102,0.47978313,1893.3,1893.0,0.48990117]
[1772007268621,0.48078313,1893.4,1893.0,0.48990117]
[1772007274826,0.48078313,1893.4,1893.1,0.0011]
[1772007275004,0.47978313,1893.3,1893.1,0.0011]
[1772007275204,0.48078313,1893.3,1893.1,0.0011]
[1772007276532,0.48078313,1893.3,1893.1,1.00693013]
[1772007281135,1.80125449,1893.3,1893.1,0.0011]
[1772007281334,0.47978313,1893.2,1892.9,0.0011]
[1772007283013,0.001,1893.4,1893.1,0.49765119]
[1772007283836,1.3213803,1893.4,1893.1,0.49765119]
[1772007284730,0.48078313,1893.4,1893.1,0.49765119]
[1772007286739,0.48078313,1893.4,1893.2,0.0011]
[1772007287121,0.001,1893.3,1893.2,0.0011]
[1772007291067,1.80004771,1893.6,1893.2,1.50458132]
[1772007291359,0.47978313,1893.6,1893.3,0.49765119]
[1772007291518,1.32013884,1893.8,1893.6,0.49765119]
[1772007291867,1.32013884,1893.8,1893.5,1.50348132]
[1772007291868,1.37538277,1893.8,1893.5,1.50348132]
[1772007292149,1.37538277,1893.8,1893.3,1.50348132]
[1772007292150,0.05524393,1893.7,1893.3,1.50348132]
[1772007294057,1.37545699,1893.7,1893.3,1.50348132]
[1772007295350,1.37545699,1893.7,1893.4,0.67017869]
[1772007295523,0.05524393,1893.6,1893.4,0.67017869]
[1772007295848,0.05524393,1893.6,1893.3,1.14336185]
[1772007297749,1.32026511,1893.6,1893.4,0.47318316]
[1772007299852,1.32126511,1893.6,1893.4,0.47318316]
[1772007300156,0.001,1893.6,1893.4,0.47318316]
[1772007301534,0.001,1893.6,1893.3,0.47428316]
[1772007301535,0.05624393,1893.6,1893.3,0.47428316]
[1772007302036,1.32030631,1893.5,1893.3,0.47428316]
[1772007303352,1.32030631,1893.5,1893.2,0.0011]
[1772007303553,1.32030631,1893.5,1893.0,0.47428316]
[1772007303554,0.45838191,1893.4,1893.0,0.47428316]
[1772007303937,0.45838191,1893.4,1893.0,1.14446185]
[1772007304761,1.32044578,1893.3,1893.0,1.14446185]
[1772007305456,1.32044578,1893.3,1893.1,0.47318316]
[1772007306755,0.45838191,1893.4,1893.1,1.14336185]
[1772007307142,1.77876437,1893.4,1893.1,1.14336185]
[1772007308060,1.77876437,1893.4,1893.1,0.47318316]
[1772007309766,1.7796646,1893.6,1893.3,1.14336185]
[1772007310740,1.7796646,1893.6,1893.3,0.47318316]
[1772007312162,0.45938191,1893.6,1893.3,1.14336185]
[1772007312464,0.001,1893.6,1893.4,1.14336185]
[1772007312669,0.001,1893.6,1893.5,1.14336185]
[1772007312959,1.77849441,1893.8,1893.5,1.14336185]
[1772007313158,3.36444999,1893.9,1893.6,1.14336185]
[1772007313332,3.36444999,1893.9,1893.6,0.47318316]
[1772007315466,0.45838191,1893.8,1893.5,1.14336185]
[1772007315766,0.45838191,1893.8,1893.5,0.47318316]
[1772007316460,1.32016686,1893.7,1893.5,0.47318316]
[1772007317464,1.32016686,1893.7,1893.2,1.32160592]
[1772007317465,0.45838191,1893.6,1893.2,0.67127869]
[1772007317645,0.45838191,1893.6,1893.2,0.47428316]
[1772007317850,0.45838191,1893.6,1893.2,1.14446185]
[1772007318050,0.45838191,1893.6,1893.3,0.67017869]
[1772007318446,0.45838191,1893.6,1893.2,1.14446185]
[1772007318653,1.77865921,1893.6,1893.3,0.47318316]
[1772007319446,1.7786212,1893.6,1893.3,0.47318316]
[1772007323676,0.001,1893.5,1893.3,0.47318316]
[1772007325371,0.001,1893.5,1893.4,0.48593717]
[1772007325574,1.32013776,1893.8,1893.4,0.67017869]
[1772007325797,1.32013776,1893.8,1893.5,1.15611586]
[1772007326072,1.79837791,1893.9,1893.6,1.15611586]
[1772007328981,1.79837791,1893.9,1893.6,0.48593717]
[1772007329173,0.48972815,1893.8,1893.3,1.16203503]
[1772007329975,0.48972815,1893.8,1893.2,0.49295634]
[1772007330554,0.48972815,1893.8,1893.2,1.16313503]
[1772007331152,0.48972815,1893.6,1893.2,1.16313503]
[1772007331883,0.48972815,1893.6,1893.3,0.49185634]
[1772007333770,1.32030631,1893.5,1893.3,0.49185634]
[1772007334770,1.81003446,1893.5,1893.2,0.67127869]
[1772007334966,1.81003446,1893.5,1893.2,1.16313503]
[1772007335293,0.48972815,1893.4,1893.2,0.0011]
[1772007335874,1.81010419,1893.4,1893.3,0.0011]
[1772007337888,0.48972815,1893.4,1893.3,0.0011]
[1772007340695,1.32135664,1893.5,1893.3,0.67127869]
[1772007340696,0.001,1893.5,1893.3,0.67127869]
[1772007340896,0.001,1893.5,1893.3,1.16313503]
[1772007346696,0.001,1893.5,1893.4,0.49185634]
[1772007346908,5.28015825,1893.9,1893.5,0.49185634]
[1772007347110,5.7698864,1893.9,1893.6,0.67017869]
[1772007347268,5.7698864,1893.9,1893.5,1.16203503]
[1772007347621,0.48972815,1893.8,1893.5,1.16203503]
[1772007348574,0.49072815,1893.8,1893.5,1.16203503]
[1772007349486,0.49072815,1893.8,1893.7,0.67017869]
[1772007349686,0.49072815,1893.8,1893.6,0.67017869]
[1772007351411,3.3947477,1894.0,1893.7,1.16203503]
[1772007351706,3.3947477,1894.0,1893.9,0.67017869]
[1772007351707,2.07472815,1894.0,1893.9,0.67017869]
[1772007351909,2.07472815,1894.0,1893.8,0.67017869]
[1772007352082,3.39469839,1894.0,1893.8,0.67017869]
[1772007352282,1.586,1894.2,1893.9,1.16203503]
[1772007352283,2.07572815,1894.2,1893.9,1.16203503]
[1772007352496,3.39554703,1894.2,1894.0,0.67017869]
[1772007352807,3.39554703,1894.2,1893.9,1.16203503]
[1772007353297,1.80954703,1894.2,1893.9,1.16203503]
[1772007353602,1.80968591,1894.0,1893.7,1.16203503]
[1772007354804,0.48972815,1894.0,1893.7,1.16203503]
[1772007357279,0.48972815,1894.0,1893.7,1.4966859]
[1772007357682,1.80688383,1894.1,1893.8,0.46833425]
[1772007360410,0.001,1894.0,1893.8,0.46833425]
[1772007360922,0.48794324,1894.0,1893.7,0.0011]
[1772007362213,1.80697069,1893.9,1893.7,0.0011]
[1772007362578,0.48694324,1893.8,1893.7,0.0011]
[1772007362909,0.48694324,1893.8,1893.5,0.0011]
[1772007364619,1.32002745,1893.9,1893.5,0.46943425]
[1772007364814,1.80697069,1893.9,1893.5,0.46943425]
[1772007365707,0.48694324,1893.8,1893.5,0.46943425]
[1772007367520,1.80707984,1893.8,1893.5,0.46943425]